fUSD/lending_fUSD_20251119
["ID","MTS","AMOUNT","RATE_DAILY","PERIOD"]
[394450170,1763585432466,-301.78219641,0.00017999,2]
[394450171,1763585432475,-500.0,0.00017999,2]
[394450172,1763585432484,-501.66929625,0.00017999,2]
[394450173,1763585432493,-500.0,0.00017999,2]
[394450174,1763585432503,-500.0,0.00017999,2]
[394450175,1763585432512,-500.0,0.00017999,2]
[394450176,1763585432698,-500.0,0.00017999,2]
[394450177,1763585432707,-500.0,0.00017999,2]
[394450178,1763585432716,-500.0,0.00017999,2]
[394450179,1763585432725,-500.0,0.00017999,2]
[394450180,1763585432734,-500.0,0.00017999,2]
[394450181,1763585432743,-206.79501577,0.00017999,2]
[394450182,1763585432752,-225.76708795,0.00017999,2]
[394450183,1763585432761,-324.72494056,0.00017999,2]
[394450184,1763585432771,-500.0,0.00017999,2]
[394450185,1763585432780,-500.0,0.00017999,2]
[394450186,1763585432789,-500.0,0.00017999,2]
[394450187,1763585432798,-500.0,0.00017999,2]
[394450188,1763585432808,-500.0,0.00017999,2]
[394450189,1763585432819,-500.0,0.00017999,2]
[394450190,1763585432828,-500.0,0.00017999,2]
[394450191,1763585432837,-500.0,0.00017999,2]
[394450192,1763585432846,-500.0,0.00017999,2]
[394450193,1763585432856,-500.0,0.00017999,2]
[394450194,1763585432865,-500.0,0.00017999,2]
[394450195,1763585432875,-500.0,0.00017999,2]
[394450196,1763585432885,-500.0,0.00017999,2]
[394450197,1763585432894,-166.946293,0.00017999,2]
[394450198,1763585432904,-500.0,0.00017999,2]
[394450199,1763585432912,-500.0,0.00017999,2]
[394450200,1763585432922,-500.0,0.00017999,2]
[394450201,1763585432931,-500.0,0.00017999,2]
[394450202,1763585432940,-500.0,0.00017999,2]
[394450203,1763585432949,-173.9332977,0.00017999,2]
[394450204,1763585432958,-500.0,0.00017999,2]
[394450205,1763585432967,-500.0,0.00017999,2]
[394450206,1763585432976,-457.30459737,0.00017999,2]
[394450207,1763585432985,-7159.0,0.00018,2]
[394450208,1763585432995,-1175.90498801,0.00018,2]
[394450209,1763585433156,-13282.46357132,0.00018,2]
[394450210,1763585433168,-576.95099994,0.00018,2]
[394450211,1763585433183,-1250.37870014,0.00018,2]
[394450219,1763585437864,-1832.14308496,0.00018,2]
[394450221,1763585437927,-2468.1736062,0.00018,2]
[394450222,1763585438106,-22373.63981034,0.00018,2]
[394450226,1763585440007,-7441.55697685,0.00018,2]
[394450227,1763585440018,-2511.40197239,0.00018,2]
[394450228,1763585440029,-812.23000005,0.00018,2]
[394450229,1763585440040,-10813.39742559,0.00018,2]
[394450230,1763585440051,-347.01380445,0.00018,2]
[394450231,1763585440066,-1026.73711585,0.00018,2]
[394450232,1763585440077,-1801.47668218,0.00018,2]
[394450233,1763585440172,-1929.4159866,0.00018,2]
[394450234,1763585440337,-11714.65482892,0.00018,2]
[394450290,1763585443097,150.5,0.00026351,120]
[394450291,1763585443540,208.7574201,0.00032876,120]
[394450292,1763585443591,150.5,0.00026341,120]
[394450296,1763585443809,-641.100018,0.00018,2]
[394450297,1763585443822,-4292.91765566,0.00018,2]
[394450298,1763585443867,-89778.198,0.00018,2]
[394450299,1763585443897,1023.89258801,0.00017999,5]
[394450300,1763585443963,150.5,0.00026331,120]
[394450301,1763585444040,-1412.94619126,0.00018,2]
[394450302,1763585444399,150.5,0.00026351,120]
[394450303,1763585444829,150.5,0.00026341,120]
[394450346,1763585445269,150.5,0.00026331,120]
[394450350,1763585445699,150.5,0.00026351,120]
[394450379,1763585445992,-278.22316395,0.00018,2]
[394450381,1763585446002,-900.862616,0.00018,2]
[394450395,1763585446136,285.61,0.00026341,120]
[394450409,1763585534444,167.70562514,0.000179,3]
[394450410,1763585562441,503.73447607,0.0004204,120]
[394450411,1763585683427,208.7574201,0.00032876,120]
[394450412,1763585712054,1399.0,0.00031824,120]
[394450445,1763585924759,273.84,0.00013699,2]
[394450483,1763585985183,500.0,0.0004204,120]
[394450484,1763585985422,500.0,0.0004204,120]
[394450485,1763585985688,500.0,0.0004204,120]
[394450486,1763585985955,533.87307861,0.0004204,120]
[394450502,1763586039483,500.0,0.0004204,120]
[394450503,1763586039707,500.0,0.0004204,120]
[394450504,1763586039946,500.0,0.0004204,120]
[394450505,1763586040201,500.0,0.0004204,120]
[394450506,1763586040461,500.0,0.0004204,120]
[394450507,1763586040726,500.0,0.0004204,120]
[394450508,1763586040976,509.48303023,0.0004204,120]
[394450514,1763586064910,5050.0,0.0004204,37]
[394450515,1763586068249,152.0,8.561e-05,2]
[394450516,1763586068506,152.0,0.00010273,2]
[394450517,1763586068934,152.0,0.00011986,2]
[394450518,1763586069150,152.0,0.00013698,2]
[394450519,1763586069392,152.0,0.0001541,2]
[394450535,1763586139495,250.0,0.00017,2]
[394450538,1763586162417,161.86,0.0001696,2]
[394450539,1763586163471,150.5,0.00026351,120]
[394450540,1763586163895,150.5,0.00026341,120]
[394450541,1763586164332,150.5,0.00026331,120]
[394450542,1763586164761,150.5,0.00026351,120]
[394450543,1763586165218,150.5,0.00026341,120]
[394450544,1763586165631,150.5,0.00026331,120]
[394450545,1763586166064,150.5,0.00026351,120]
[394450546,1763586166575,285.61,0.00026341,120]
[394450578,1763586201333,1992.16,0.00016438,2]
[394450596,1763586249255,701.3,0.00016919,2]
[394450597,1763586292287,250.0,0.00016886,2]
[394450598,1763586306973,610.84,0.00016905,2]
[394450599,1763586308039,1600.0,0.00025357,120]
[394450601,1763586431998,-2000.0,0.00016851,2]
[394450602,1763586432019,-300.0,0.00016878,2]
[394450603,1763586432042,-989.16,0.00016905,2]
[394450604,1763586432063,-300.0,0.00017067,2]
[394450605,1763586432085,-152.0,0.00017122,2]
[394450606,1763586432105,-317.0,0.00017228,2]
[394450607,1763586432126,-510.0,0.00017228,2]
[394450608,1763586432148,-150.0,0.00017269,2]
[394450609,1763586432170,-1000.0,0.00017329,2]
[394450610,1763586432191,-150.0,0.00017388,2]
[394450611,1763586432221,-1500.0,0.00017399,2]
[394450612,1763586432257,-500.0,0.0001744,2]
[394450613,1763586432280,-200.0,0.00017485,2]
[394450614,1763586432300,-214.70556468,0.00017543,2]
[394450615,1763586432321,-830.0,0.00017587,2]
[394450616,1763586432342,-1200.0,0.00017587,2]
[394450617,1763586432363,-5611.61026095,0.00017588,2]
[394450618,1763586432384,-641.0,0.00017589,2]
[394450619,1763586432404,-225.21969723,0.000178,2]
[394450620,1763586432425,-1100.0,0.000178,2]
[394450621,1763586432446,-3332.07539816,0.0001783,2]
[394450622,1763586432466,-614.18784732,0.000179,2]
[394450623,1763586432488,-1203.2381,0.000179,2]
[394450624,1763586432511,-1959.80313166,0.000179,2]
[394450625,1763586478027,-704.03,0.00017552,2]
[394450626,1763586478048,-5913.92125357,0.000179,2]
[394450627,1763586478073,-4080.3713,0.000179,2]
[394450628,1763586478093,-19301.67744643,0.000179,2]
[394450629,1763586522221,-12000.0,0.000179,2]
[394450633,1763586618441,191.59,0.00031507,120]
[394450653,1763586632134,-2040.46,0.00017546,2]
[394450654,1763586632143,-1358.11781386,0.000178,2]
[394450655,1763586632153,-1089.6264092,0.00017899,2]
[394450656,1763586632162,-300.0,0.00017899,2]
[394450657,1763586632171,-300.0,0.00017899,2]
[394450658,1763586632180,-1200.0,0.00017899,2]
[394450659,1763586632189,-11900.5101571,0.000179,2]
[394450660,1763586632200,-18654.52706044,0.000179,2]
[394450661,1763586632212,-3231.96354465,0.000179,2]
[394450662,1763586632222,-12197.3775011,0.000179,2]
[394450663,1763586632236,-5241.05329028,0.000179,2]
[394450664,1763586632245,-1982.83991213,0.000179,2]
[394450665,1763586632254,-1516.22447955,0.000179,2]
[394450666,1763586632263,-363.4875,0.000179,2]
[394450667,1763586632272,-1265.80898628,0.000179,2]
[394450668,1763586632283,-4444.3538527,0.000179,2]
[394450669,1763586632292,-12871.20219751,0.000179,2]
[394450670,1763586632303,-2500.0,0.000179,2]
[394450671,1763586632313,-829.0,0.000179,2]
[394450672,1763586632322,-151.0,0.000179,2]
[394450673,1763586632331,-1246.0,0.000179,2]
[394450674,1763586632340,-151.0,0.000179,2]
[394450675,1763586632350,-1246.0,0.000179,2]
[394450676,1763586632360,-1246.0,0.000179,2]
[394450677,1763586632371,-151.0,0.000179,2]
[394450678,1763586632381,-1246.0,0.000179,2]
[394450679,1763586632391,-151.0,0.000179,2]
[394450680,1763586632401,-1246.0,0.000179,2]
[394450681,1763586632411,-151.0,0.000179,2]
[394450682,1763586632420,-1246.0,0.000179,2]
[394450683,1763586632429,-151.0,0.000179,2]
[394450684,1763586632438,-1246.0,0.000179,2]
[394450685,1763586632447,-151.0,0.000179,2]
[394450686,1763586632457,-153.0,0.000179,2]
[394450688,1763586632466,-1246.0,0.000179,2]
[394450690,1763586632475,-151.0,0.000179,2]
[394450692,1763586632484,-153.0,0.000179,2]
[394450694,1763586632494,-153.0,0.000179,2]
[394450696,1763586632504,-300.0,0.000179,2]
[394450698,1763586632513,-161.86,0.00017902,2]
[394450699,1763586632523,-300.0,0.00017921,2]
[394450701,1763586632532,-163.69,0.00017924,2]
[394450702,1763586632542,-4512.0,0.0001793,2]
[394450703,1763586632555,-239869.35088706,0.00017934,2]
[394450704,1763586632570,-5000.0,0.00017934,2]
[394450705,1763586632581,-3041.31296243,0.00017934,2]
[394450706,1763586632596,-1656.67488001,0.00017934,2]
[394450707,1763586632608,-737.85,0.00017934,2]
[394450708,1763586632619,-1930.9250069,0.00017934,2]
[394450709,1763586632634,-1171.87051943,0.00017934,2]
[394450710,1763586632659,-387.11639996,0.00017934,2]
[394450712,1763586632673,-289.14843026,0.00017934,2]
[394450724,1763586638085,-296.61204001,0.00017934,2]
[394450725,1763586638137,-594.3415104,0.00017934,2]
[394450726,1763586638148,-1249.3253808,0.00017934,2]
[394450732,1763586638534,-2526.79383634,0.00017934,2]
[394450733,1763586638546,-2820.9609437,0.00017934,2]
[394450734,1763586638558,-5924.34735,0.00017934,2]
[394450735,1763586638570,-16985.4237847,0.00017934,2]
[394450736,1763586638581,-26235.60000001,0.00017934,2]
[394450737,1763586638592,-2149.884,0.00017934,2]
[394450738,1763586638603,-2140.429727,0.00017934,2]
[394450740,1763586640153,-10780.42590879,0.00017934,2]
[394450741,1763586640163,-35145.488573,0.00017934,2]
[394450742,1763586640173,-500.0,0.00017973,2]
[394450743,1763586640182,-500.0,0.00017973,2]
[394450744,1763586640190,-500.0,0.00017973,2]
[394450745,1763586640200,-397.31767821,0.00017973,2]
[394450746,1763586640209,-500.0,0.00017973,2]
[394450747,1763586640218,-500.0,0.00017973,2]
[394450748,1763586640227,-164.7127725,0.00017973,2]
[394450749,1763586640236,-170.21796906,0.00017973,2]
[394450750,1763586640246,-500.0,0.00017973,2]
[394450751,1763586640255,-209.39696604,0.0001799,2]
[394450752,1763586640264,-163.69,0.0001799,2]
[394450753,1763586640274,-163.69,0.0001799,2]
[394450754,1763586640283,-1923.53,0.00017997,2]
[394450755,1763586640293,-155.077,0.00017997,2]
[394450756,1763586640302,-151.0,0.00017997,2]
[394450757,1763586640311,-1508.99,0.00017998,2]
[394450758,1763586640320,-500.0,0.00017999,2]
[394450759,1763586640329,-500.0,0.00017999,2]
[394450760,1763586640338,-569.03911677,0.00017999,2]
[394450761,1763586640347,-500.0,0.00017999,2]
[394450762,1763586640357,-500.0,0.00017999,2]
[394450763,1763586640366,-604.21222333,0.00017999,2]
[394450764,1763586640376,-500.83480133,0.00017999,2]
[394450765,1763586640385,-500.0,0.00017999,2]
[394450766,1763586640395,-251.22210553,0.00017999,2]
[394450767,1763586640404,-500.0,0.00017999,2]
[394450768,1763586640414,-500.0,0.00017999,2]
[394450769,1763586640424,-500.0,0.00017999,2]
[394450770,1763586640433,-500.0,0.00017999,2]
[394450771,1763586640443,-500.0,0.00017999,2]
[394450772,1763586640453,-512.60984382,0.00017999,2]
[394450773,1763586640462,-500.0,0.00017999,2]
[394450774,1763586640472,-500.0,0.00017999,2]
[394450775,1763586640481,-500.0,0.00017999,2]
[394450776,1763586640491,-500.0,0.00017999,2]
[394450777,1763586640500,-500.0,0.00017999,2]
[394450778,1763586640510,-500.0,0.00017999,2]
[394450779,1763586640521,-500.0,0.00017999,2]
[394450780,1763586640530,-500.0,0.00017999,2]
[394450781,1763586640540,-500.0,0.00017999,2]
[394450782,1763586640549,-500.0,0.00017999,2]
[394450783,1763586640560,-500.0,0.00017999,2]
[394450784,1763586640569,-500.0,0.00017999,2]
[394450785,1763586640580,-500.0,0.00017999,2]
[394450786,1763586640589,-500.0,0.00017999,2]
[394450787,1763586640599,-300.0,0.00017999,2]
[394450788,1763586640609,-43.36913574,0.00017999,2]
[394450789,1763586640621,-456.63086426,0.00017999,2]
[394450790,1763586640635,-500.0,0.00017999,2]
[394450791,1763586640646,-500.0,0.00017999,2]
[394450792,1763586640655,-500.0,0.00017999,2]
[394450793,1763586640668,-500.0,0.00017999,2]
[394450794,1763586640677,-500.0,0.00017999,2]
[394450795,1763586640686,-500.0,0.00017999,2]
[394450796,1763586640696,-156.67488001,0.00017999,2]
[394450797,1763586640706,-467.59082421,0.00017999,2]
[394450798,1763586640716,-500.0,0.00017999,2]
[394450799,1763586640725,-500.0,0.00017999,2]
[394450800,1763586640734,-437.07502368,0.00017999,2]
[394450801,1763586640745,-500.0,0.00017999,2]
[394450802,1763586640757,-500.0,0.00017999,2]
[394450803,1763586640772,-558.20179792,0.00017999,2]
[394450804,1763586640785,-500.0,0.00017999,2]
[394450805,1763586640796,-500.0,0.00017999,2]
[394450806,1763586640808,-501.66929625,0.00017999,2]
[394450807,1763586640821,-500.0,0.00017999,2]
[394450808,1763586640833,-500.0,0.00017999,2]
[394450809,1763586640846,-366.03333391,0.00017999,2]
[394450810,1763586640859,-500.0,0.00017999,2]
[394450811,1763586640872,-270.35617701,0.00017999,2]
[394450812,1763586640885,-500.0,0.00017999,2]
[394450813,1763586640897,-500.0,0.00017999,2]
[394450814,1763586640909,-500.0,0.00017999,2]
[394450815,1763586640919,-500.0,0.00017999,2]
[394450816,1763586640932,-500.0,0.00017999,2]
[394450817,1763586640944,-500.0,0.00017999,2]
[394450818,1763586640958,-500.0,0.00017999,2]
[394450819,1763586640969,-500.0,0.00017999,2]
[394450820,1763586640982,-500.0,0.00017999,2]
[394450821,1763586640995,-500.0,0.00017999,2]
[394450822,1763586641008,-500.0,0.00017999,2]
[394450823,1763586641022,-500.0,0.00017999,2]
[394450824,1763586641036,-500.0,0.00017999,2]
[394450825,1763586641047,-500.0,0.00017999,2]
[394450826,1763586641062,-332.5511908,0.00017999,2]
[394450827,1763586641074,-500.0,0.00017999,2]
[394450828,1763586641086,-500.0,0.00017999,2]
[394450829,1763586641098,-500.0,0.00017999,2]
[394450830,1763586641111,-500.0,0.00017999,2]
[394450831,1763586641127,-500.0,0.00017999,2]
[394450832,1763586641140,-500.0,0.00017999,2]
[394450833,1763586641153,-500.0,0.00017999,2]
[394450834,1763586641165,-500.0,0.00017999,2]
[394450835,1763586641175,-500.0,0.00017999,2]
[394450836,1763586641186,-500.0,0.00017999,2]
[394450837,1763586641198,-500.0,0.00017999,2]
[394450838,1763586641210,-500.0,0.00017999,2]
[394450839,1763586641225,-500.0,0.00017999,2]
[394450840,1763586641235,-500.0,0.00017999,2]
[394450841,1763586641245,-500.0,0.00017999,2]
[394450842,1763586641255,-500.0,0.00017999,2]
[394450843,1763586641265,-500.0,0.00017999,2]
[394450844,1763586641278,-200.0,0.00017999,2]
[394450845,1763586641291,-186.75965905,0.00017999,2]
[394450846,1763586641303,-376.96902219,0.00017999,2]
[394450847,1763586641315,-301.78219641,0.00017999,2]
[394450848,1763586641325,-305.00061682,0.00017999,2]
[394450849,1763586641335,-500.0,0.00017999,2]
[394450850,1763586641346,-500.0,0.00017999,2]
[394450851,1763586641359,-500.0,0.00017999,2]
[394450852,1763586641370,-324.72494056,0.00017999,2]
[394450853,1763586641381,-225.76708795,0.00017999,2]
[394450854,1763586641393,-206.79501577,0.00017999,2]
[394450855,1763586641404,-500.0,0.00017999,2]
[394450856,1763586641417,-6749.0,0.00018,2]
[394450857,1763586641428,-93945.04607446,0.00018,2]
[394450858,1763586641443,-899.08241054,0.00018,2]
[394450859,1763586641704,-9227.74909907,0.00018,2]
[394450860,1763586641729,-847.65135057,0.00018,2]
[394450861,1763586641777,-341.49790502,0.00018,2]
[394450862,1763586642101,-862.87458603,0.00018,2]
[394450863,1763586642112,-617.1099675,0.00018,2]
[394450864,1763586642123,-1534.63861178,0.00018,2]
[394450874,1763586644036,-193.51588791,0.00018,2]
[394450875,1763586644599,-10.35414074,0.00018,2]
[394450876,1763586644614,-1032524.2247613,0.00018,2]
[394450877,1763586645015,-2145.6,0.00018,2]
[394450878,1763586645075,-22500.69830009,0.00018,2]
[394450896,1763586646262,-156.10335688,0.00018,2]
[394450897,1763586646273,-3712.08920011,0.00018,2]
[394450898,1763586646579,-729.60608024,0.00018,2]
[394450899,1763586646590,-2442.52823143,0.00018,2]
[394450923,1763586926373,156.0,0.0004204,120]
[394450936,1763586991518,222.66247121,0.00017155,3]
[394450937,1763586991542,776.33752879,0.00017155,3]
[394450968,1763587199456,150.0,0.00016831,120]
[394450983,1763587286927,-263.24908174,0.00016823,2]
[394451006,1763587503263,150.0,0.000162,2]
[394451007,1763587506577,150.0,0.000162,2]
[394451008,1763587506765,150.0,0.000162,2]
[394451009,1763587513164,150.0,0.000162,2]
[394451010,1763587513194,150.0,0.000162,2]
[394451011,1763587519495,2997.28661954,9e-05,2]
[394451012,1763587528825,150.0,0.000162,2]
[394451013,1763587539367,1135.84411997,0.0004203,30]
[394451018,1763587565468,2178.12252851,0.00011,2]
[394451019,1763587579038,1242.82754314,0.0004203,30]
[394451020,1763587586993,2032.49130457,0.00015,2]
[394451021,1763587604097,844.44901088,0.0003,120]
[394451026,1763587705815,222.40658392,0.0001,2]
[394451039,1763587711985,266.43259701,0.000107,2]
[394451040,1763587714676,1113.49113025,0.00014999,2]
[394451041,1763587719793,-80.77091826,0.00016823,2]
[394451042,1763587719814,-300.0,0.00016823,2]
[394451043,1763587719835,-300.0,0.00016824,2]
[394451044,1763587719855,-300.0,0.00016825,2]
[394451045,1763587719875,-300.0,0.00016825,2]
[394451046,1763587719895,-300.0,0.00016826,2]
[394451047,1763587719916,-219.22908174,0.00016826,2]
[394451048,1763587719944,3289.7692362,0.0001,2]
[394451049,1763587719974,2894.79540741,0.0001,2]
[394451050,1763587720004,30007.77513803,0.00015,2]
[394451051,1763587722924,822.215898,0.00013699,2]
[394451052,1763587723953,293.5011495,0.0004203,30]
[394451054,1763587744600,-80.77091826,0.00016826,2]
[394451055,1763587744628,-416.73448753,0.00016826,2]
[394451056,1763587744653,-1852.42,0.00016827,2]
[394451057,1763587744678,-150.0,0.00016831,2]
[394451058,1763587744702,-2751.0,0.00016875,2]
[394451059,1763587744728,-1200.0,0.00016984,2]
[394451060,1763587744752,-1200.0,0.00016985,2]
[394451061,1763587744776,-300.0,0.00016985,2]
[394451062,1763587744801,-2116.09,0.00016986,2]
[394451063,1763587744826,-23322.29112189,0.00017,2]
[394451064,1763587744854,-200.0,0.00017086,2]
[394451065,1763587744879,-5613.2,0.00017193,2]
[394451066,1763587744904,-422.0,0.00017306,2]
[394451067,1763587744930,-422.0,0.00017317,2]
[394451068,1763587744954,-2641.0,0.00017413,2]
[394451069,1763587744979,-422.0,0.00017452,2]
[394451070,1763587745004,-478.61,0.000175,2]
[394451071,1763587745034,-2641.0,0.00017592,2]
[394451072,1763587745058,-318.34484491,0.00017635,2]
[394451073,1763587745081,-625.25668575,0.000177,2]
[394451074,1763587745113,-2641.0,0.00017729,2]
[394451075,1763587754425,186.28194166,0.000175,2]
[394451133,1763587831374,-292.32805834,0.000175,2]
[394451135,1763587831383,-222.35315505,0.00017718,2]
[394451136,1763587831392,-5888.0,0.00017752,2]
[394451138,1763587831401,-1200.0,0.00017753,2]
[394451140,1763587831410,-300.0,0.00017753,2]
[394451141,1763587831419,-300.0,0.00017753,2]
[394451142,1763587831428,-422.0,0.00017754,2]
[394451143,1763587831437,-300.0,0.00017766,2]
[394451144,1763587831446,-300.0,0.00017767,2]
[394451145,1763587831456,-300.0,0.00017767,2]
[394451146,1763587831465,-300.0,0.00017767,2]
[394451147,1763587831475,-422.0,0.00017777,2]
[394451148,1763587831484,-550.0,0.00017799,2]
[394451149,1763587831494,-1512.88647755,0.000178,2]
[394451150,1763587831506,-566.25609508,0.000178,2]
[394451151,1763587831517,-635.5909998,0.000178,2]
[394451152,1763587831528,-462.52882757,0.000178,2]
[394451153,1763587831538,-234.87,0.000178,2]
[394451154,1763587831547,-1000.0,0.000178,2]
[394451155,1763587831557,-1672.55311861,0.000178,2]
[394451157,1763587831578,-2403.29018139,0.000178,2]
[394451158,1763587831587,-934.4995,0.000178,2]
[394451159,1763587831597,-173.10505544,0.000178,2]
[394451160,1763587831606,-280.4094,0.000178,2]
[394451161,1763587831615,-2500.0,0.000178,2]
[394451162,1763587831624,-173.10505543,0.00017825,2]
[394451163,1763587831634,-422.0,0.00017838,2]
[394451164,1763587831643,-173.10505543,0.0001785,2]
[394451165,1763587831653,-422.0,0.00017854,2]
[394451166,1763587831666,-500.0,0.00017873,2]
[394451167,1763587831675,-506.29642956,0.00017873,2]
[394451168,1763587831685,-500.87773051,0.00017873,2]
[394451169,1763587831694,-500.0,0.00017873,2]
[394451170,1763587831703,-173.10505543,0.00017875,2]
[394451171,1763587831713,-584.53193635,0.00017889,2]
[394451172,1763587831722,-500.0,0.00017899,2]
[394451173,1763587831731,-213.50043177,0.00017899,2]
[394451174,1763587831741,-263.87831553,0.00017899,2]
[394451175,1763587831750,-500.0,0.00017899,2]
[394451176,1763587831761,-440.74125854,0.00017899,2]
[394451177,1763587831770,-500.0,0.00017899,2]
[394451178,1763587831780,-202.74721562,0.00017899,2]
[394451179,1763587831790,-500.0,0.00017899,2]
[394451180,1763587831799,-500.0,0.00017899,2]
[394451181,1763587831808,-403.25511908,0.00017899,2]
[394451182,1763587831820,-345.2379,0.000179,2]
[394451183,1763587831829,-899.9786,0.000179,2]
[394451184,1763587831839,-33339.3297,0.000179,2]
[394451185,1763587831849,-5328.3868,0.000179,2]
[394451186,1763587831859,-27975.96624495,0.000179,2]
[394451187,1763587831871,-3553.24062006,0.000179,2]
[394451190,1763587831886,-98305.72611082,0.000179,2]
[394451193,1763587831905,-391.2107439,0.000179,2]
[394451195,1763587831916,-2904.14323361,0.000179,2]
[394451197,1763587831927,-1335.80895032,0.000179,2]
[394451214,1763587837355,-1035.95374603,0.000178,2]
[394451215,1763587837364,-410.67264778,0.000178,2]
[394451216,1763587837524,-961.5643706,0.000178,2]
[394451424,1763587839462,-15.44359154,0.000178,2]
[394451426,1763587839474,-562.72029993,0.000178,2]
[394451463,1763587839821,-31388.92879015,0.000178,2]
[394451465,1763587839830,-1035.95374596,0.00017811,2]
[394451466,1763587839839,-70988.1275661,0.000179,2]
[394451469,1763587839855,-905.29,0.000179,2]
[394451772,1763587844559,-547.0,0.00017822,2]
[394451773,1763587844651,-488.95374596,0.00017822,2]
[394451774,1763587844661,-553640.48653024,0.000179,2]
[394451775,1763587844671,-1000.0,0.000179,2]
[394451776,1763587844680,-173.10505543,0.000179,2]
[394451777,1763587844689,-4444.3538527,0.000179,2]
[394451778,1763587844699,-174.81082475,0.000179,2]
[394451779,1763587844708,-59967.3377218,0.00017963,2]
[394451780,1763587844717,-500.0,0.00017973,2]
[394451781,1763587844726,-500.0,0.00017973,2]
[394451782,1763587844735,-500.0,0.00017973,2]
[394451783,1763587844745,-500.0,0.00017973,2]
[394451784,1763587844754,-566.88496045,0.00017973,2]
[394451785,1763587844763,-500.0,0.00017973,2]
[394451786,1763587844773,-500.376468,0.00017973,2]
[394451787,1763587844782,-500.0,0.00017973,2]
[394451788,1763587844791,-500.0,0.00017973,2]
[394451789,1763587844801,-500.0,0.00017973,2]
[394451790,1763587844810,-500.0,0.00017973,2]
[394451791,1763587844819,-500.0,0.00017973,2]
[394451792,1763587844830,-500.0,0.00017973,2]
[394451793,1763587844839,-462.94013652,0.00017973,2]
[394451794,1763587844848,-501.28766336,0.00017973,2]
[394451795,1763587844857,-501.93625082,0.00017973,2]
[394451796,1763587844866,-500.0,0.00017973,2]
[394451797,1763587844875,-500.0,0.00017973,2]
[394451798,1763587844884,-325.05031776,0.00017973,2]
[394451799,1763587844894,-500.0,0.00017973,2]
[394451800,1763587844903,-500.0,0.00017973,2]
[394451801,1763587844912,-500.0,0.00017973,2]
[394451802,1763587844922,-167.76856295,0.00017973,2]
[394451803,1763587844931,-184.80854603,0.00017973,2]
[394451804,1763587844941,-500.0,0.00017973,2]
[394451805,1763587844950,-506.74684174,0.00017973,2]
[394451806,1763587844959,-500.0,0.00017973,2]
[394451807,1763587844969,-500.0,0.00017973,2]
[394451808,1763587844979,-500.0,0.00017973,2]
[394451809,1763587844988,-500.0,0.00017973,2]
[394451810,1763587844997,-500.0,0.00017973,2]
[394451811,1763587845006,-500.0,0.00017973,2]
[394451812,1763587845015,-500.0,0.00017973,2]
[394451813,1763587845024,-500.0,0.00017973,2]
[394451814,1763587845035,-500.0,0.00017973,2]
[394451815,1763587845045,-500.0,0.00017973,2]
[394451816,1763587845056,-172.81844873,0.00017973,2]
[394451817,1763587845066,-500.0,0.00017973,2]
[394451818,1763587845079,-331.56816786,0.00017973,2]
[394451819,1763587845089,-500.0,0.00017973,2]
[394451820,1763587845098,-500.0,0.00017973,2]